fUSD/lending_fUSD_20250530
["ID","MTS","AMOUNT","RATE_DAILY","PERIOD"]
[363232189,1748634632950,-500.0,0.00019636,2]
[363232190,1748634632960,-500.0,0.00019636,2]
[363232191,1748634632968,-500.0,0.00019636,2]
[363232192,1748634632978,-500.0,0.00019636,2]
[363232193,1748634632987,-500.0,0.00019636,2]
[363232194,1748634632997,-500.0,0.00019636,2]
[363232195,1748634633006,-500.0,0.00019636,2]
[363232196,1748634633015,-500.0,0.00019636,2]
[363232197,1748634633025,-500.0,0.00019636,2]
[363232198,1748634633035,-500.0,0.00019636,2]
[363232199,1748634633045,-500.0,0.00019636,2]
[363232200,1748634633054,-500.0,0.00019636,2]
[363232201,1748634633064,-500.0,0.00019636,2]
[363232202,1748634633074,-500.0,0.00019636,2]
[363232203,1748634633084,-500.0,0.00019636,2]
[363232204,1748634633094,-500.0,0.00019636,2]
[363232205,1748634633104,-500.0,0.00019636,2]
[363232206,1748634633113,-500.0,0.00019636,2]
[363232207,1748634633123,-500.0,0.00019636,2]
[363232208,1748634633133,-500.0,0.00019636,2]
[363232209,1748634633143,-500.0,0.00019636,2]
[363232210,1748634633153,-500.0,0.00019636,2]
[363232211,1748634633163,-500.0,0.00019636,2]
[363232212,1748634633174,-500.0,0.00019636,2]
[363232213,1748634633185,-500.0,0.00019636,2]
[363232214,1748634633196,-500.0,0.00019636,2]
[363232215,1748634633206,-500.0,0.00019636,2]
[363232216,1748634633215,-500.0,0.00019636,2]
[363232217,1748634633225,-500.0,0.00019636,2]
[363232218,1748634633235,-500.0,0.00019636,2]
[363232219,1748634633246,-500.0,0.00019636,2]
[363232220,1748634633255,-500.0,0.00019636,2]
[363232221,1748634633265,-500.0,0.00019636,2]
[363232222,1748634633278,-500.0,0.00019636,2]
[363232223,1748634633288,-500.0,0.00019636,2]
[363232224,1748634633298,-500.0,0.00019636,2]
[363232225,1748634633308,-500.0,0.00019636,2]
[363232226,1748634633319,-500.0,0.00019636,2]
[363232227,1748634633330,-500.0,0.00019636,2]
[363232228,1748634633339,-500.0,0.00019636,2]
[363232229,1748634633351,-500.0,0.00019636,2]
[363232230,1748634633361,-500.0,0.00019636,2]
[363232231,1748634633371,-500.0,0.00019636,2]
[363232232,1748634633380,-500.0,0.00019636,2]
[363232233,1748634633390,-500.0,0.00019636,2]
[363232234,1748634633400,-500.0,0.00019636,2]
[363232235,1748634633409,-500.0,0.00019636,2]
[363232236,1748634633419,-500.0,0.00019636,2]
[363232237,1748634633428,-500.0,0.00019636,2]
[363232238,1748634633438,-500.0,0.00019636,2]
[363232239,1748634633447,-500.0,0.00019636,2]
[363232240,1748634633458,-500.0,0.00019636,2]
[363232241,1748634633468,-500.0,0.00019636,2]
[363232242,1748634633479,-500.0,0.00019636,2]
[363232243,1748634633488,-500.0,0.00019636,2]
[363232244,1748634633498,-500.0,0.00019636,2]
[363232245,1748634633508,-500.0,0.00019636,2]
[363232246,1748634633517,-500.0,0.00019636,2]
[363232247,1748634633527,-500.0,0.00019636,2]
[363232248,1748634633538,-500.0,0.00019636,2]
[363232249,1748634633547,-500.0,0.00019636,2]
[363232250,1748634633556,-557.97306658,0.00019636,2]
[363232251,1748634633566,-500.0,0.00019636,2]
[363232252,1748634633575,-500.0,0.00019636,2]
[363232253,1748634633585,-500.0,0.00019636,2]
[363232254,1748634633595,-500.0,0.00019636,2]
[363232255,1748634633605,-500.0,0.00019636,2]
[363232256,1748634633614,-318.79371916,0.00019636,2]
[363232257,1748634633624,-500.0,0.00019636,2]
[363232258,1748634633635,-500.0,0.00019636,2]
[363232259,1748634633646,-500.0,0.00019636,2]
[363232260,1748634633656,-250.0,0.00019636,2]
[363232261,1748634633665,-175.45743355,0.00019636,2]
[363232262,1748634633675,-246.91591802,0.00019636,2]
[363232263,1748634633685,-500.0,0.00019636,2]
[363232264,1748634633696,-500.0,0.00019636,2]
[363232265,1748634633706,-500.0,0.00019636,2]
[363232266,1748634633716,-500.0,0.00019636,2]
[363232267,1748634633726,-500.0,0.00019636,2]
[363232268,1748634633737,-500.0,0.00019636,2]
[363232269,1748634633747,-500.0,0.00019636,2]
[363232270,1748634633757,-595.53532661,0.00019636,2]
[363232271,1748634633767,-500.0,0.00019636,2]
[363232272,1748634633777,-500.0,0.00019636,2]
[363232273,1748634633787,-500.0,0.00019636,2]
[363232274,1748634633797,-500.0,0.00019636,2]
[363232275,1748634633807,-500.0,0.00019636,2]
[363232276,1748634633817,-500.0,0.00019636,2]
[363232277,1748634633826,-500.0,0.00019636,2]
[363232278,1748634633836,-500.00000001,0.00019636,2]
[363232279,1748634633846,-500.0,0.00019636,2]
[363232280,1748634633857,-228.66367406,0.00019636,2]
[363232281,1748634633866,-500.0,0.00019636,2]
[363232282,1748634633877,-500.0,0.00019636,2]
[363232283,1748634633887,-500.0,0.00019636,2]
[363232284,1748634633897,-500.0,0.00019636,2]
[363232285,1748634633907,-350.48163973,0.00019636,2]
[363232286,1748634633917,-500.0,0.00019636,2]
[363232287,1748634633927,-500.0,0.00019636,2]
[363232288,1748634633937,-486.42785222,0.00019636,2]
[363232289,1748634633947,-500.0,0.00019636,2]
[363232290,1748634633957,-500.0,0.00019636,2]
[363232291,1748634633966,-500.0,0.00019636,2]
[363232292,1748634633976,-500.0,0.00019636,2]
[363232293,1748634633986,-500.0,0.00019636,2]
[363232294,1748634633996,-445.0498048,0.00019636,2]
[363232295,1748634634007,-524.90239575,0.00019636,2]
[363232296,1748634634016,-271.18188176,0.00019636,2]
[363232297,1748634634026,-2623.17667748,0.00019636,2]
[363232298,1748634634035,-2623.17667748,0.00019636,2]
[363232299,1748634634045,-2623.17667748,0.00019636,2]
[363232300,1748634634055,-2623.17667748,0.00019636,2]
[363232301,1748634634065,-2623.17667748,0.00019636,2]
[363232302,1748634634074,-2623.17667748,0.00019636,2]
[363232303,1748634634084,-2623.17667748,0.00019636,2]
[363232304,1748634634094,-2623.17667748,0.00019636,2]
[363232305,1748634634103,-2623.17667748,0.00019636,2]
[363232306,1748634634114,-2623.17667748,0.00019636,2]
[363232307,1748634634124,-2623.17667742,0.00019636,2]
[363232308,1748634634134,-11800.53689273,0.00019637,2]
[363232310,1748634638120,-1027.26565177,0.00019536,2]
[363232480,1748634639909,-300.0,0.00019535,2]
[363232482,1748634639919,-863.06361514,0.00019536,2]
[363232487,1748634639963,-1047.2,0.00019536,2]
[363232490,1748634639974,-21742.48533381,0.00019536,2]
[363232492,1748634639984,-143729.18310727,0.00019637,2]
[363232494,1748634639994,-500.0,0.00019673,2]
[363232496,1748634640003,-500.0,0.00019673,2]
[363232498,1748634640012,-5451.15639504,0.00019673,2]
[363232500,1748634640023,-151.0,0.0001968,2]
[363232502,1748634640031,-5000.0,0.000197,7]
[363232503,1748634640040,-500.0,0.00019718,2]
[363232505,1748634640049,-151.0,0.00019735,2]
[363232507,1748634640058,-151.0,0.0001979,2]
[363232509,1748634640068,-24680.01460069,0.00019799,2]
[363232511,1748634640077,-6700.0,0.000198,7]
[363232513,1748634640087,-786.82,0.000198,2]
[363232515,1748634640097,-10870.49854081,0.0001981,2]
[363232517,1748634640106,-840.0,0.00019845,2]
[363232519,1748634640116,-151.0,0.00019845,2]
[363232521,1748634640126,-714.08336726,0.00019856,2]
[363232523,1748634640136,-8467.47529463,0.00019872,2]
[363232525,1748634640146,-289.39789755,0.00019897,2]
[363232527,1748634640156,-742.59117957,0.000199,2]
[363232529,1748634640165,-231.02300233,0.000199,2]
[363232531,1748634640174,-8400.0,0.000199,7]
[363232533,1748634640183,-5461.03777568,0.000199,2]
[363232535,1748634640195,-151.0,0.000199,2]
[363232537,1748634640205,-150.0,0.00019936,7]
[363232539,1748634640214,-151.0,0.00019955,2]
[363232541,1748634640224,-786.82,0.00019963,2]
[363232543,1748634640233,-931.96282263,0.00019963,2]
[363232545,1748634640243,-36199.0,0.00019973,2]
[363232547,1748634640253,-157.13717609,0.00019973,2]
[363232550,1748634640263,-303.88403609,0.00019973,2]
[363232553,1748634640287,-500.0,0.00019973,2]
[363232555,1748634640305,-500.0,0.00019973,2]
[363232559,1748634640324,-499.0,0.00019973,2]
[363232561,1748634640343,-159.48795485,0.00019973,2]
[363232564,1748634640361,-439.0,0.00019973,2]
[363232567,1748634640381,-14843.0,0.00019973,2]
[363232570,1748634640401,-500.0,0.00019973,2]
[363232573,1748634640422,-500.0,0.00019973,2]
[363232576,1748634640440,-500.0,0.00019973,2]
[363232579,1748634640457,-500.65590479,0.00019973,2]
[363232582,1748634640475,-500.0,0.00019973,2]
[363232584,1748634640489,-500.55802474,0.00019973,2]
[363232587,1748634640508,-504.03314862,0.00019973,2]
[363232589,1748634640520,-500.0,0.00019973,2]
[363232592,1748634640538,-500.0,0.00019973,2]
[363232594,1748634640552,-500.0,0.00019973,2]
[363232598,1748634640573,-151.73,0.0001999,2]
[363232600,1748634640588,-1478.23623147,0.0001999,2]
[363232603,1748634640604,-1478.23623147,0.0001999,2]
[363232605,1748634640620,-1076.80876035,0.00019999,5]
[363232608,1748634640634,-1076.80876036,0.00019999,5]
[363232611,1748634640648,-245.46,0.00019999,2]
[363232613,1748634640663,-171.498,0.00019999,2]
[363232616,1748634640678,-171.4120049,0.00019999,2]
[363232617,1748634640692,-500.0,0.00019999,2]
[363232618,1748634640706,-446.27511681,0.00019999,2]
[363232619,1748634640720,-159.49730746,0.00019999,2]
[363232620,1748634640734,-239.25457301,0.00019999,2]
[363232621,1748634640749,-3507557.96521642,0.0002,2]
[363232622,1748634640763,-200.0,0.0002,2]
[363232623,1748634640777,-500.0,0.0002,2]
[363232624,1748634640792,-500.0,0.0002,2]
[363232625,1748634640806,-500.0,0.0002,2]
[363232626,1748634640820,-500.0,0.0002,2]
[363232627,1748634640834,-500.0,0.0002,2]
[363232628,1748634640850,-538.38964601,0.0002,2]
[363232630,1748634640864,-4000.0,0.0002,4]
[363232632,1748634640879,-57850.74894066,0.00020005,2]
[363232635,1748634640893,-151.0,0.0002001,2]
[363232637,1748634640908,-166.13,0.00020037,2]
[363232640,1748634640924,-156.587,0.00020057,2]
[363232643,1748634640938,-151.0,0.00020065,2]
[363232645,1748634640953,-162.64735372,0.00020075,2]
[363232648,1748634640967,-151.0,0.0002012,2]
[363232650,1748634640982,-8467.47529463,0.00020125,2]
[363232653,1748634640996,-9999.99,0.00020145,2]
[363232656,1748634641011,-585.98,0.00020145,2]
[363232658,1748634641025,-3241.78,0.00020145,2]
[363232661,1748634641040,-12141.46,0.00020145,2]
[363232663,1748634641055,-265.53,0.00020145,2]
[363232666,1748634641069,-175.7,0.00020145,2]
[363232669,1748634641083,-1544.75,0.00020145,2]
[363232671,1748634641098,-150.99,0.00020145,2]
[363232674,1748634641113,-150.99,0.00020145,2]
[363232677,1748634641127,-999.99,0.00020145,2]
[363232679,1748634641142,-2688.79,0.00020145,2]
[363232682,1748634641157,-299.99,0.00020145,7]
[363232684,1748634641171,-9999.99,0.00020145,2]
[363232687,1748634641187,-9999.99,0.00020145,2]
[363232690,1748634641202,-151.0,0.00020175,2]
[363232692,1748634641218,-291.46,0.00020187,2]
[363232695,1748634641233,-200.0,0.000202,2]
[363232698,1748634641248,-1000.0,0.00020221,2]
[363232700,1748634641263,-151.0,0.0002023,2]
[363232703,1748634641281,-151.0,0.00020285,2]
[363232706,1748634641295,-300.0,0.00020335,2]
[363232708,1748634641310,-151.0,0.0002034,2]
[363232711,1748634641325,-8467.47529463,0.00020379,2]
[363232713,1748634641342,-151.0,0.00020395,2]
[363232716,1748634641357,-200.0,0.00020402,2]
[363232719,1748634641371,-151.0,0.0002045,2]
[363232721,1748634641399,-6989.40219918,0.000205,3]
[363232723,1748634641428,-151.0,0.00020505,2]
[363232726,1748634641456,-1000.0,0.00020521,2]
[363232728,1748634641483,-1000.0,0.00020521,2]
[363232730,1748634641511,-532.03377022,0.00020521,2]
[363232733,1748634641539,-503.06153334,0.00020521,2]
[363232735,1748634641567,-547.52718811,0.00020521,2]
[363232737,1748634641595,-1000.0,0.00020521,2]
[363232739,1748634641624,-1000.0,0.00020521,2]
[363232742,1748634641652,-501.98633899,0.00020521,2]
[363232744,1748634641680,-189.37,0.00020548,2]
[363232747,1748634641703,-151.0,0.0002056,2]
[363232749,1748634641718,-2878.88814,0.0002058,2]
[363232752,1748634641732,-162.380719,0.00020605,2]
[363232754,1748634641747,-200.0,0.00020606,2]
[363232757,1748634641762,-151.0,0.00020615,2]
[363232760,1748634641777,-164.81,0.00020618,2]
[363232762,1748634641792,-8467.47529463,0.00020632,2]
[363232765,1748634641806,-6989.40219899,0.00020659,3]
[363232767,1748634641821,-151.0,0.0002067,2]
[363232770,1748634641836,-2878.88815,0.0002069,2]
[363232773,1748634641850,-1500.0,0.00020768,2]
[363232775,1748634641866,-200.0,0.00020812,2]
[363232778,1748634641881,-166.13,0.00020831,2]
[363232780,1748634641895,-2878.88815,0.0002084,2]
[363232783,1748634641909,-205.0,0.00020856,2]
[363232786,1748634641923,-8467.47529463,0.00020886,2]
[363232788,1748634641939,-193.30320605,0.00020968,3]
[363232791,1748634641953,-1529.54582936,0.00020968,2]
[363232793,1748634641969,-198.68554347,0.00020968,2]
[363232796,1748634641983,-155.32515884,0.00020968,2]
[363232798,1748634641999,-1000.0,0.00020986,2]
[363232799,1748634642010,-400.0,0.00021,2]
[363232800,1748634642020,-2878.88815,0.00021,2]
[363232801,1748634642031,-500.0,0.00021014,2]
[363232803,1748634642040,-296458.56345897,0.0002105,2]
[363232805,1748634642050,-1500.0,0.00021068,2]
[363232807,1748634642059,-1500.0,0.00021068,2]
[363232809,1748634642070,-1500.0,0.00021068,2]
[363232811,1748634642079,-198.72853232,0.00021068,2]
[363232813,1748634642088,-500.0,0.00021073,2]
[363232815,1748634642098,-500.0,0.00021073,2]
[363232817,1748634642108,-500.0,0.00021073,2]
[363232819,1748634642117,-500.0,0.00021073,2]
[363232821,1748634642126,-159.57199504,0.00021073,2]
[363232824,1748634642137,-217.62485625,0.00021073,2]
[363232826,1748634642146,-500.0,0.00021073,2]
[363232828,1748634642156,-501.3177613,0.00021073,2]
[363232829,1748634642166,-359.05901085,0.00021073,2]
[363232830,1748634642175,-500.70476926,0.00021073,2]
[363232831,1748634642184,-546.95711903,0.00021073,2]
[363232833,1748634642633,-500.0,0.00021073,2]
[363232834,1748634642666,-153.83086859,0.00021073,2]
[363232835,1748634642679,-500.0,0.00021073,2]
[363232836,1748634642689,-500.0,0.00021073,2]
[363232837,1748634642700,-316.81486897,0.00021073,2]
[363232838,1748634642710,-500.94347598,0.00021073,2]
[363232839,1748634642718,-500.0,0.00021073,2]
[363232840,1748634642727,-500.0,0.00021073,2]
[363232841,1748634642735,-500.0,0.00021073,2]
[363232842,1748634642743,-8467.47529463,0.00021139,2]
[363232843,1748634642752,-2878.88815,0.0002115,2]
[363232844,1748634642761,-168.3888056,0.00021153,2]
[363232845,1748634642771,-1406.47,0.00021299,2]
[363232846,1748634642780,-2878.88815,0.0002131,2]
[363232848,1748634642790,-2000.0,0.00021316,2]
[363232849,1748634642799,-1680.0,0.00021363,2]
[363232850,1748634642809,-245.46,0.00021369,2]
[363232851,1748634642818,-1904.0,0.0002137,2]
[363232852,1748634642827,-8467.47529463,0.00021393,2]
[363232853,1748634642836,-1269.99,0.00021402,2]
[363232854,1748634642846,-6989.40219899,0.00021417,5]
[363232855,1748634642856,-250.0,0.00021449,2]
[363232856,1748634642865,-200.0,0.00021449,2]
[363232857,1748634642875,-200.0,0.00021449,2]
[363232858,1748634642885,-200.0,0.00021449,2]
[363232859,1748634642894,-1000.0,0.00021517,2]
[363232860,1748634642904,-79818.03609245,0.00021572,2]
[363232861,1748634642914,-2000.0,0.00021616,2]
[363232862,1748634642924,-1831.3615091,0.00021616,2]
[363232863,1748634642933,-507.62292189,0.00021616,2]
[363232864,1748634642943,-502.00374054,0.00021621,2]
[363232865,1748634642952,-1000.0,0.00021621,2]
[363232866,1748634642962,-1000.0,0.00021621,2]
[363232867,1748634642972,-1000.0,0.00021621,2]
[363232868,1748634642982,-501.41094564,0.00021621,2]
[363232869,1748634642992,-1000.0,0.00021621,2]
[363232870,1748634643001,-166.13,0.00021625,2]
[363232871,1748634643011,-1500.0,0.00021644,2]
[363232872,1748634643021,-500.0,0.00021644,2]
[363232873,1748634643030,-8467.47529463,0.00021646,2]
[363232874,1748634643039,-500.0,0.00021674,2]
[363232875,1748634643049,-500.51754316,0.00021674,2]
[363232876,1748634643058,-231.02300226,0.00021678,2]
[363232877,1748634643068,-3592.81473506,0.000217,2]
[363232878,1748634643077,-924.59,0.000217,2]
[363232879,1748634643086,-174.61919141,0.00021701,2]
[363232880,1748634643095,-300.0,0.00021705,2]
[363232881,1748634643105,-1000.0,0.00021773,2]
[363232882,1748634643115,-7303.74456737,0.000219,2]
[363232883,1748634643125,-7303.74456737,0.000219,2]
[363232884,1748634643135,-7303.74456737,0.000219,2]
[363232885,1748634643143,-7303.74456737,0.000219,2]
[363232886,1748634643153,-7303.74456737,0.000219,2]
[363232887,1748634643164,-7303.74456737,0.000219,2]
[363232888,1748634643174,-7303.74456737,0.000219,2]
[363232889,1748634643184,-7303.74456737,0.000219,2]
[363232890,1748634643194,-7303.74456737,0.000219,2]
[363232891,1748634643204,-7303.74456737,0.000219,2]
[363232892,1748634643214,-7303.74456737,0.000219,2]
[363232893,1748634643224,-7303.74456737,0.000219,2]
[363232894,1748634643233,-7303.74456737,0.000219,2]
[363232895,1748634643243,-7303.74456737,0.000219,2]
[363232896,1748634643252,-7303.74456737,0.000219,2]
[363232897,1748634643261,-7303.74456737,0.000219,2]
[363232898,1748634643271,-7303.74456737,0.000219,2]
[363232900,1748634643284,-7303.74456737,0.000219,2]
[363232902,1748634643293,-7303.74456737,0.000219,2]
[363232904,1748634643303,-8467.47529463,0.000219,2]
[363232907,1748634643312,-45662.14108091,0.00021912,2]
[363232911,1748634643323,-151.0,0.00021912,2]
[363232912,1748634643332,-151.0,0.00021912,2]
[363232915,1748634643342,-151.0,0.00021912,2]
[363232918,1748634643351,-1739.178541,0.00021912,2]
[363232922,1748634643362,-1739.178541,0.00021912,2]
[363232924,1748634643372,-164.833223,0.00021912,2]
[363232926,1748634643381,-151.0,0.00021912,2]
[363232929,1748634643391,-151.0,0.00021912,2]
[363232931,1748634643400,-5356.375765,0.00021912,2]
[363232933,1748634643410,-5356.375765,0.00021912,2]
[363232935,1748634643419,-151.0,0.00021912,2]
[363232937,1748634643428,-500.0,0.00021918,2]
[363232939,1748634643437,-500.0,0.00021918,2]
[363232943,1748634643449,-500.0,0.00021918,2]
[363232944,1748634643459,-500.0,0.00021918,2]
[363232947,1748634643469,-500.0,0.00021918,2]
[363232949,1748634643478,-500.0,0.00021918,2]
[363232951,1748634643488,-500.0,0.00021918,2]
[363232953,1748634643497,-500.0,0.00021918,2]
[363232955,1748634643507,-536.04895213,0.00021918,2]
[363232957,1748634643517,-500.0,0.00021918,2]
[363232959,1748634643526,-500.0,0.00021918,2]
[363232961,1748634643535,-500.0,0.00021918,2]
[363232963,1748634643544,-500.0,0.00021918,2]
[363232965,1748634643554,-500.0,0.00021918,2]
[363232967,1748634643563,-250.0,0.00021918,2]
[363232969,1748634643573,-500.0,0.00021918,2]
[363232971,1748634643583,-500.0,0.00021918,2]
[363232973,1748634643592,-500.0,0.00021918,2]
[363232975,1748634643601,-500.0,0.00021918,2]
[363232977,1748634643610,-500.0,0.00021918,2]
[363232979,1748634643619,-500.0,0.00021918,2]
[363232981,1748634643628,-371.7647132,0.00021918,2]
[363232983,1748634643637,-641.94577887,0.00021918,2]
[363232985,1748634643646,-641.94577887,0.00021918,2]
[363232987,1748634643656,-641.94577887,0.00021918,2]
[363232989,1748634643665,-641.94577887,0.00021918,2]
[363232991,1748634643674,-641.94577887,0.00021918,2]
[363232993,1748634643683,-641.94577887,0.00021918,2]
[363232994,1748634643692,-641.94577887,0.00021918,2]
[363232996,1748634643702,-641.94577887,0.00021918,2]
[363232998,1748634643711,-641.94577887,0.00021918,2]
[363233000,1748634643720,-641.94577887,0.00021918,2]
[363233002,1748634643729,-641.94577887,0.00021918,2]
[363233004,1748634643738,-641.94577887,0.00021918,2]
[363233006,1748634643748,-641.94577887,0.00021918,2]
[363233008,1748634643757,-641.94577887,0.00021918,2]
[363233010,1748634643766,-641.94577887,0.00021918,2]
[363233012,1748634643775,-641.94577887,0.00021918,2]
[363233014,1748634643784,-641.94577887,0.00021918,2]
[363233016,1748634643793,-641.94577887,0.00021918,2]
[363233018,1748634643801,-641.94577887,0.00021918,2]
[363233020,1748634643810,-641.94577887,0.00021918,2]
[363233022,1748634643820,-641.94577887,0.00021918,2]
[363233024,1748634643829,-641.94577887,0.00021918,2]
[363233026,1748634643838,-641.94577887,0.00021918,2]
[363233028,1748634643847,-641.94577887,0.00021918,2]
[363233030,1748634643857,-641.94577887,0.00021918,2]
[363233032,1748634643866,-641.94577887,0.00021918,2]
[363233034,1748634643875,-641.94577887,0.00021918,2]
[363233036,1748634643884,-641.94577887,0.00021918,2]
[363233038,1748634643893,-641.94577887,0.00021918,2]
[363233040,1748634643903,-641.94577887,0.00021918,2]
[363233042,1748634643912,-641.94577887,0.00021918,2]
[363233044,1748634643921,-641.94577887,0.00021918,2]
[363233046,1748634643930,-641.94577887,0.00021918,2]
[363233048,1748634643940,-641.94577887,0.00021918,2]
[363233050,1748634643951,-641.94577887,0.00021918,2]
[363233052,1748634643960,-641.94577887,0.00021918,2]
[363233055,1748634643970,-641.94577887,0.00021918,2]
[363233057,1748634643980,-641.94577887,0.00021918,2]
[363233059,1748634643989,-641.94577887,0.00021918,2]
[363233061,1748634643998,-641.94577887,0.00021918,2]
[363233063,1748634644007,-641.94577887,0.00021918,2]
[363233065,1748634644017,-641.94577887,0.00021918,2]
[363233066,1748634644027,-641.94577887,0.00021918,2]
[363233067,1748634644037,-641.94577887,0.00021918,2]
[363233068,1748634644046,-641.94577887,0.00021918,2]
[363233069,1748634644057,-641.94577887,0.00021918,2]
[363233070,1748634644066,-641.94577887,0.00021918,2]
[363233071,1748634644077,-641.94577887,0.00021918,2]
[363233072,1748634644087,-641.94577887,0.00021918,2]
[363233073,1748634644098,-641.94577887,0.00021918,2]
[363233074,1748634644107,-641.94577888,0.00021918,2]
[363233075,1748634644117,-641.94577888,0.00021918,2]
[363233076,1748634644127,-641.94577888,0.00021918,2]
[363233077,1748634644136,-641.94577888,0.00021918,2]
[363233078,1748634644145,-641.94577888,0.00021918,2]
[363233079,1748634644155,-641.94577888,0.00021918,2]
[363233080,1748634644164,-641.94577888,0.00021918,2]
[363233081,1748634644174,-641.94577888,0.00021918,2]
[363233082,1748634644183,-641.94577888,0.00021918,2]
[363233083,1748634644196,-641.94577888,0.00021918,2]
[363233084,1748634644206,-641.94577888,0.00021918,2]
[363233085,1748634644215,-641.94577888,0.00021918,2]
[363233086,1748634644225,-641.94577888,0.00021918,2]
[363233087,1748634644235,-641.94577888,0.00021918,2]
[363233088,1748634644245,-641.94577888,0.00021918,2]
[363233089,1748634644255,-641.94577888,0.00021918,2]
[363233090,1748634644265,-641.94577888,0.00021918,2]
[363233091,1748634644278,-641.94577888,0.00021918,2]
[363233092,1748634644288,-641.94577888,0.00021918,2]
[363233093,1748634644298,-641.94577888,0.00021918,2]
[363233094,1748634644309,-641.94577888,0.00021918,2]
[363233095,1748634644319,-641.94577888,0.00021918,2]
[363233096,1748634644329,-641.94577888,0.00021918,2]
[363233097,1748634644338,-641.94577888,0.00021918,2]
[363233098,1748634644347,-641.94577888,0.00021918,2]
[363233099,1748634644359,-641.94577888,0.00021918,2]
[363233100,1748634644368,-641.94577888,0.00021918,2]
[363233101,1748634644379,-641.94577888,0.00021918,2]
[363233102,1748634644388,-641.94577888,0.00021918,2]
[363233103,1748634644398,-641.94577888,0.00021918,2]
[363233104,1748634644408,-641.94577888,0.00021918,2]
[363233105,1748634644417,-641.94577885,0.00021918,2]
[363233106,1748634644427,-641.94577885,0.00021918,2]
[363233107,1748634644437,-641.94577885,0.00021918,2]
[363233108,1748634644449,-641.94577885,0.00021918,2]
[363233109,1748634644460,-641.94577885,0.00021918,2]
[363233110,1748634644469,-151.0,0.00021918,7]
[363233111,1748634644479,-361.393696,0.00021918,7]
[363233112,1748634644489,-361.393696,0.00021918,7]
[363233113,1748634644499,-151.0,0.00021918,7]
[363233114,1748634644508,-151.0,0.00021918,7]
[363233115,1748634644518,-151.0,0.00021933,7]
[363233116,1748634644528,-151.0,0.00021933,7]
[363233117,1748634644537,-223.349154,0.00021933,7]
[363233118,1748634644547,-151.0,0.00021933,7]
[363233119,1748634644556,-160.2711382,0.00021973,2]
[363233120,1748634644566,-155.0,0.00021999,2]
[363233121,1748634644576,-151.0,0.00021999,7]
[363233122,1748634644585,-151.0,0.00021999,7]
[363233123,1748634644595,-151.0,0.00021999,7]
[363233124,1748634644604,-9415.46,0.00022,7]
[363233125,1748634644613,-248.46843206,0.00022,2]
[363233126,1748634644623,-500.0,0.00022,2]
[363233127,1748634644633,-263028.56,0.00022,7]
[363233128,1748634644643,-769.36840665,0.00022,2]
[363233129,1748634644652,-151.0,0.00022,7]
[363233130,1748634644662,-151.0,0.00022,7]
[363233131,1748634644671,-151.0,0.00022,7]
[363233132,1748634644681,-151.0,0.00022,7]
[363233133,1748634644691,-151.0,0.00022,7]
[363233134,1748634644703,-151.0,0.00022,7]
[363233135,1748634644712,-151.0,0.00022,7]
[363233136,1748634644722,-151.0,0.00022,7]
[363233137,1748634644731,-151.0,0.00022,7]
[363233138,1748634644741,-151.0,0.00022,7]
[363233139,1748634644751,-151.0,0.00022,7]
[363233140,1748634644761,-1739.178541,0.00022,7]
[363233141,1748634644771,-1739.178541,0.00022,7]
[363233142,1748634644781,-151.0,0.00022,7]
[363233143,1748634644791,-151.0,0.00022,7]
[363233144,1748634644800,-151.0,0.00022,7]